[Event "Titled Tuesday Blitz March 29 Late 2022"]
[White "Ljukin, Sergei"]
[Black "Aravindh, Chithambaram VR."]
[WhiteFideId "14102200"]
[BlackFideId "5072786"]
[WhiteElo "2312"]
[BlackElo "2561"]
[Result "0-1"]
[Round "03"]
[TimeControl "180+1"]
[Date "2022.03.29"]
[WhiteClock "0:02:43"]
[BlackClock "0:02:52"]

1. e4 {[%clk 0:02:57]}  g6 {[%clk 0:02:59]} 2. d4 {[%clk 0:02:57]}  Bg7 {[%clk 0:03:00]} 3. Nc3 {[%clk 0:02:57]}  d6 {[%clk 0:03:00]} 4. f4 {[%clk 0:02:56]}  a6 {[%clk 0:03:00]} 5. Nf3 {[%clk 0:02:56]}  b5 {[%clk 0:02:59]} 6. Bd3 {[%clk 0:02:57]}  Bb7 {[%clk 0:02:59]} 7. O-O {[%clk 0:02:53]}  Nd7 {[%clk 0:02:58]} 8. e5 {[%clk 0:02:54]}  c5 {[%clk 0:02:58]} 9. exd6 {[%clk 0:02:50]}  cxd4 {[%clk 0:02:56]} 10. Be4 {[%clk 0:02:44]}  dxc3 {[%clk 0:02:52]} 11. Bxb7 {[%clk 0:02:43]}  Qb6+ {[%clk 0:02:52]} 0-1


[Site "https://www.chess.com"]

[Event "Titled Tuesday Blitz March 29 Late 2022"]
[White "Melaugh, Shane"]
[Black "Arabidze, Meri"]
[WhiteFideId "2509580"]
[BlackFideId "13604040"]
[WhiteElo "2014"]
[BlackElo "2335"]
[Result "0-1"]
[Round "03"]
[TimeControl "180+1"]
[Date "2022.03.30"]
[WhiteClock "0:00:06"]
[BlackClock "0:00:14"]

1. e4 {[%clk 0:03:00]}  c6 {[%clk 0:02:57]} 2. d4 {[%clk 0:03:00]}  d5 {[%clk 0:02:57]} 3. exd5 {[%clk 0:03:01]}  cxd5 {[%clk 0:02:57]} 4. Bf4 {[%clk 0:03:02]}  Nc6 {[%clk 0:02:56]} 5. Nc3 {[%clk 0:03:03]}  Nf6 {[%clk 0:02:55]} 6. Nb5 {[%clk 0:03:03]}  e5 {[%clk 0:02:49]} 7. dxe5 {[%clk 0:03:03]}  Ne4 {[%clk 0:02:48]} 8. Qxd5 {[%clk 0:03:03]}  Bf5 {[%clk 0:02:39]} 9. Bc4 {[%clk 0:02:19]}  Qxd5 {[%clk 0:02:33]} 10. Nc7+ {[%clk 0:02:06]}  Kd7 {[%clk 0:02:33]} 11. Nxd5 {[%clk 0:02:07]}  g5 {[%clk 0:02:32]} 12. Be3 {[%clk 0:02:02]}  Nxe5 {[%clk 0:02:30]} 13. Bb3 {[%clk 0:02:02]}  Bc5 {[%clk 0:02:14]} 14. O-O-O {[%clk 0:02:02]}  Kc6 {[%clk 0:02:08]} 15. Bxc5 {[%clk 0:02:01]}  Kxc5 {[%clk 0:02:08]} 16. Nc7 {[%clk 0:01:52]}  Rad8 {[%clk 0:02:06]} 17. Re1 {[%clk 0:01:42]}  Nc6 {[%clk 0:01:47]} 18. Nh3 {[%clk 0:01:35]}  Rd7 {[%clk 0:01:41]} 19. Nd5 {[%clk 0:01:25]}  Rxd5 {[%clk 0:01:37]} 20. Bxd5 {[%clk 0:01:26]}  Kxd5 {[%clk 0:01:38]} 21. f3 {[%clk 0:01:27]}  Nf6 {[%clk 0:01:27]} 22. Nxg5 {[%clk 0:01:16]}  Nb4 {[%clk 0:01:27]} 23. Rd1+ {[%clk 0:01:11]}  Kc6 {[%clk 0:01:25]} 24. Nxf7 {[%clk 0:01:10]}  Rf8 {[%clk 0:01:02]} 25. Ne5+ {[%clk 0:01:09]}  Kb5 {[%clk 0:00:56]} 26. c4+ {[%clk 0:01:02]}  Ka4 {[%clk 0:00:54]} 27. a3 {[%clk 0:00:47]}  Na2+ {[%clk 0:00:54]} 28. Kd2 {[%clk 0:00:47]}  Kb3 {[%clk 0:00:53]} 29. g4 {[%clk 0:00:44]}  Bc2 {[%clk 0:00:47]} 30. Rde1 {[%clk 0:00:41]}  Rd8+ {[%clk 0:00:39]} 31. Ke3 {[%clk 0:00:41]}  Kxb2 {[%clk 0:00:39]} 32. g5 {[%clk 0:00:39]}  Nh5 {[%clk 0:00:37]} 33. f4 {[%clk 0:00:29]}  Nc3 {[%clk 0:00:37]} 34. Rhf1 {[%clk 0:00:28]}  Kxa3 {[%clk 0:00:32]} 35. Rc1 {[%clk 0:00:27]}  Kb2 {[%clk 0:00:32]} 36. Ra1 {[%clk 0:00:24]}  Nd1+ {[%clk 0:00:31]} 37. Rfxd1 {[%clk 0:00:21]}  Rxd1 {[%clk 0:00:31]} 38. Rxa7 {[%clk 0:00:22]}  Re1+ {[%clk 0:00:28]} 39. Kf3 {[%clk 0:00:19]}  Kc3 {[%clk 0:00:22]} 40. Kg4 {[%clk 0:00:18]}  Bd1+ {[%clk 0:00:21]} 41. Kf5 {[%clk 0:00:17]}  Rf1 {[%clk 0:00:20]} 42. Rxb7 {[%clk 0:00:12]}  Nxf4 {[%clk 0:00:21]} 43. Ke4 {[%clk 0:00:12]}  Bc2+ {[%clk 0:00:19]} 44. Ke3 {[%clk 0:00:11]}  Ng2+ {[%clk 0:00:18]} 45. Ke2 {[%clk 0:00:11]}  Rf5 {[%clk 0:00:18]} 46. Nf3 {[%clk 0:00:10]}  Bd3+ {[%clk 0:00:17]} 47. Kf2 {[%clk 0:00:10]}  Nh4 {[%clk 0:00:17]} 48. Kg3 {[%clk 0:00:08]}  Nxf3 {[%clk 0:00:16]} 49. h4 {[%clk 0:00:09]}  Nd4 {[%clk 0:00:15]} 50. c5 {[%clk 0:00:09]}  Ne2+ {[%clk 0:00:14]} 51. Kg4 {[%clk 0:00:09]}  Rxc5 {[%clk 0:00:15]} 52. Ra7 {[%clk 0:00:06]}  Nd4 {[%clk 0:00:15]} 53. Kh5 {[%clk 0:00:07]}  Bg6+ {[%clk 0:00:14]} 54. Kh6 {[%clk 0:00:06]}  Nf5# {[%clk 0:00:14]} 0-1


[Site "https://www.chess.com"]

[Event "Titled Tuesday Blitz March 29 Late 2022"]
[White "Melkumyan, Hrant"]
[Black "Lin, Dachey"]
[WhiteFideId "13302485"]
[BlackFideId "2029650"]
[WhiteElo "2604"]
[BlackElo "2313"]
[Result "1-0"]
[Round "03"]
[TimeControl "180+1"]
[Date "2022.03.29"]
[WhiteClock "0:00:15"]
[BlackClock "0:00:03"]

1. d4 {[%clk 0:03:00]}  g6 {[%clk 0:03:00]} 2. e4 {[%clk 0:02:59]}  Bg7 {[%clk 0:02:59]} 3. Nf3 {[%clk 0:02:59]}  c6 {[%clk 0:02:54]} 4. Nc3 {[%clk 0:02:58]}  d5 {[%clk 0:02:54]} 5. h3 {[%clk 0:02:58]}  dxe4 {[%clk 0:02:55]} 6. Nxe4 {[%clk 0:02:59]}  Nd7 {[%clk 0:02:55]} 7. Bd3 {[%clk 0:02:58]}  Ngf6 {[%clk 0:02:56]} 8. Qe2 {[%clk 0:02:58]}  O-O {[%clk 0:02:56]} 9. O-O {[%clk 0:02:57]}  Nxe4 {[%clk 0:02:56]} 10. Qxe4 {[%clk 0:02:57]}  Nf6 {[%clk 0:02:56]} 11. Qh4 {[%clk 0:02:57]}  Qb6 {[%clk 0:02:48]} 12. Re1 {[%clk 0:02:56]}  Be6 {[%clk 0:02:47]} 13. c4 {[%clk 0:02:49]}  Rfe8 {[%clk 0:02:42]} 14. b3 {[%clk 0:02:48]}  Rad8 {[%clk 0:02:35]} 15. Bh6 {[%clk 0:02:47]}  Bh8 {[%clk 0:02:32]} 16. Rad1 {[%clk 0:02:47]}  Qa5 {[%clk 0:02:32]} 17. Rd2 {[%clk 0:02:31]}  Qh5 {[%clk 0:02:30]} 18. Qf4 {[%clk 0:02:27]}  Qa5 {[%clk 0:02:23]} 19. Rde2 {[%clk 0:02:25]}  b5 {[%clk 0:02:12]} 20. d5 {[%clk 0:02:13]}  cxd5 {[%clk 0:02:10]} 21. cxb5 {[%clk 0:02:12]}  Ne4 {[%clk 0:02:05]} 22. Ng5 {[%clk 0:01:53]}  Bf5 {[%clk 0:01:55]} 23. Bxe4 {[%clk 0:01:43]}  dxe4 {[%clk 0:01:51]} 24. Nxe4 {[%clk 0:01:35]}  Qxb5 {[%clk 0:01:09]} 25. Ng3 {[%clk 0:01:33]}  Be6 {[%clk 0:00:55]} 26. Ne4 {[%clk 0:01:19]}  Rd1 {[%clk 0:00:40]} 27. Rxd1 {[%clk 0:01:04]}  Qxe2 {[%clk 0:00:40]} 28. Rd2 {[%clk 0:01:04]}  Qe1+ {[%clk 0:00:38]} 29. Kh2 {[%clk 0:01:04]}  Bf5 {[%clk 0:00:38]} 30. Ng3 {[%clk 0:01:03]}  Be5 {[%clk 0:00:37]} 31. Qb4 {[%clk 0:01:03]}  Bd6 {[%clk 0:00:32]} 32. Qc3 {[%clk 0:00:58]}  Qe5 {[%clk 0:00:29]} 33. Qxe5 {[%clk 0:00:51]}  Bxe5 {[%clk 0:00:30]} 34. Rd5 {[%clk 0:00:52]}  Bd6 {[%clk 0:00:30]} 35. Be3 {[%clk 0:00:51]}  a6 {[%clk 0:00:28]} 36. Rd4 {[%clk 0:00:46]}  Be6 {[%clk 0:00:28]} 37. Ra4 {[%clk 0:00:42]}  Bc8 {[%clk 0:00:28]} 38. Bf4 {[%clk 0:00:42]}  e5 {[%clk 0:00:27]} 39. Ne4 {[%clk 0:00:41]}  Bb8 {[%clk 0:00:12]} 40. Nf6+ {[%clk 0:00:39]}  Kf8 {[%clk 0:00:12]} 41. Bh6+ {[%clk 0:00:38]}  Ke7 {[%clk 0:00:12]} 42. Nxe8 {[%clk 0:00:39]}  Kxe8 {[%clk 0:00:13]} 43. Be3 {[%clk 0:00:36]}  Bd6 {[%clk 0:00:11]} 44. Bc5 {[%clk 0:00:33]}  Bc7 {[%clk 0:00:07]} 45. Rc4 {[%clk 0:00:33]}  Be6 {[%clk 0:00:07]} 46. Rc1 {[%clk 0:00:32]}  Kd7 {[%clk 0:00:08]} 47. Be3 {[%clk 0:00:32]}  f5 {[%clk 0:00:08]} 48. g3 {[%clk 0:00:31]}  f4 {[%clk 0:00:08]} 49. Ba7 {[%clk 0:00:28]}  g5 {[%clk 0:00:08]} 50. Rd1+ {[%clk 0:00:25]}  Kc6 {[%clk 0:00:08]} 51. Rc1+ {[%clk 0:00:26]}  Kd7 {[%clk 0:00:08]} 52. gxf4 {[%clk 0:00:22]}  gxf4 {[%clk 0:00:07]} 53. f3 {[%clk 0:00:22]}  Bf5 {[%clk 0:00:07]} 54. Kg2 {[%clk 0:00:22]}  e4 {[%clk 0:00:07]} 55. fxe4 {[%clk 0:00:23]}  Bxe4+ {[%clk 0:00:08]} 56. Kf2 {[%clk 0:00:23]}  Bd6 {[%clk 0:00:08]} 57. Bd4 {[%clk 0:00:23]}  Ke6 {[%clk 0:00:08]} 58. Rd1 {[%clk 0:00:22]}  h5 {[%clk 0:00:07]} 59. Rg1 {[%clk 0:00:19]}  Bf5 {[%clk 0:00:07]} 60. Rg5 {[%clk 0:00:17]}  h4 {[%clk 0:00:06]} 61. Rh5 {[%clk 0:00:17]}  Be7 {[%clk 0:00:06]} 62. Rh6+ {[%clk 0:00:17]}  Kd5 {[%clk 0:00:07]} 63. Ba7 {[%clk 0:00:14]}  Bxh3 {[%clk 0:00:07]} 64. Rxa6 {[%clk 0:00:14]}  Bf5 {[%clk 0:00:07]} 65. Ra5+ {[%clk 0:00:14]}  Ke6 {[%clk 0:00:07]} 66. Ra6+ {[%clk 0:00:14]}  Ke5 {[%clk 0:00:07]} 67. Ra5+ {[%clk 0:00:14]}  Ke6 {[%clk 0:00:08]} 68. Bc5 {[%clk 0:00:15]}  Bd8 {[%clk 0:00:08]} 69. Ra6+ {[%clk 0:00:15]}  Ke5 {[%clk 0:00:08]} 70. Rh6 {[%clk 0:00:14]}  h3 {[%clk 0:00:08]} 71. b4 {[%clk 0:00:14]}  Kd5 {[%clk 0:00:05]} 72. a4 {[%clk 0:00:14]}  Kc4 {[%clk 0:00:05]} 73. a5 {[%clk 0:00:15]}  Kb5 {[%clk 0:00:06]} 74. a6 {[%clk 0:00:15]}  Be4 {[%clk 0:00:03]} 75. a7 {[%clk 0:00:15]} 1-0


[Site "https://www.chess.com"]

[Event "Titled Tuesday Blitz March 29 Late 2022"]
[White "Meza, Anahi"]
[Black "Rytenko, Vsevolod"]
[WhiteFideId "111325"]
[BlackFideId "14133040"]
[WhiteElo "1968"]
[BlackElo "2120"]
[Result "1-0"]
[Round "03"]
[TimeControl "180+1"]
[Date "2022.03.30"]
[WhiteClock "0:00:03"]
[BlackClock "0:00:02"]

1. d4 {[%clk 0:03:00]}  d6 {[%clk 0:00:51]} 2. c4 {[%clk 0:02:57]}  Nf6 {[%clk 0:00:50]} 3. Nc3 {[%clk 0:02:56]}  g6 {[%clk 0:00:51]} 4. e4 {[%clk 0:02:56]}  Bg7 {[%clk 0:00:51]} 5. Be2 {[%clk 0:02:57]}  O-O {[%clk 0:00:51]} 6. Nf3 {[%clk 0:02:57]}  e5 {[%clk 0:00:50]} 7. O-O {[%clk 0:02:53]}  Nc6 {[%clk 0:00:51]} 8. d5 {[%clk 0:02:54]}  Ne7 {[%clk 0:00:51]} 9. b4 {[%clk 0:02:54]}  Nh5 {[%clk 0:00:51]} 10. c5 {[%clk 0:02:52]}  f5 {[%clk 0:00:51]} 11. Ng5 {[%clk 0:02:50]}  Nf4 {[%clk 0:00:49]} 12. Bxf4 {[%clk 0:02:48]}  exf4 {[%clk 0:00:50]} 13. Rc1 {[%clk 0:02:48]}  a5 {[%clk 0:00:49]} 14. a3 {[%clk 0:02:23]}  axb4 {[%clk 0:00:49]} 15. axb4 {[%clk 0:02:24]}  Kh8 {[%clk 0:00:49]} 16. Nb5 {[%clk 0:02:17]}  Nxd5 {[%clk 0:00:47]} 17. exd5 {[%clk 0:02:12]}  Qxg5 {[%clk 0:00:47]} 18. Nxc7 {[%clk 0:02:10]}  Ra2 {[%clk 0:00:34]} 19. Bf3 {[%clk 0:02:08]}  Qf6 {[%clk 0:00:22]} 20. Nb5 {[%clk 0:01:42]}  g5 {[%clk 0:00:19]} 21. Nxd6 {[%clk 0:01:27]}  g4 {[%clk 0:00:19]} 22. Nxc8 {[%clk 0:01:19]}  gxf3 {[%clk 0:00:13]} 23. Qxf3 {[%clk 0:01:16]}  Rxc8 {[%clk 0:00:12]} 24. d6 {[%clk 0:01:10]}  Qf7 {[%clk 0:00:09]} 25. Rfe1 {[%clk 0:01:07]}  Rb2 {[%clk 0:00:08]} 26. Re7 {[%clk 0:01:05]}  Qf6 {[%clk 0:00:06]} 27. Qxb7 {[%clk 0:01:02]}  Rf8 {[%clk 0:00:05]} 28. c6 {[%clk 0:00:17]}  Qd4 {[%clk 0:00:05]} 29. Rf1 {[%clk 0:00:15]}  Rxf2 {[%clk 0:00:05]} 30. Ree1 {[%clk 0:00:08]}  Re2+ {[%clk 0:00:03]} 31. Kh1 {[%clk 0:00:07]}  f3 {[%clk 0:00:04]} 32. gxf3 {[%clk 0:00:05]}  Rd2 {[%clk 0:00:02]} 33. Qe7 {[%clk 0:00:03]} 1-0


[Site "https://www.chess.com"]

[Event "Titled Tuesday Blitz March 29 Late 2022"]
[White "Miszler, Levente"]
[Black "Torres Hernandez, Leslie Carolin"]
[WhiteFideId "763276"]
[BlackFideId "8400504"]
[WhiteElo "1966"]
[BlackElo "1920"]
[Result "1-0"]
[Round "03"]
[TimeControl "180+1"]
[Date "2022.03.30"]
[WhiteClock "0:00:42"]
[BlackClock "0:00:01"]

1. Nf3 {[%clk 0:03:00]}  d5 {[%clk 0:01:53]} 2. g3 {[%clk 0:02:59]}  Nf6 {[%clk 0:01:53]} 3. Bg2 {[%clk 0:02:59]}  Bf5 {[%clk 0:01:52]} 4. O-O {[%clk 0:02:58]}  e6 {[%clk 0:01:52]} 5. Nh4 {[%clk 0:02:58]}  Bg6 {[%clk 0:01:52]} 6. Nxg6 {[%clk 0:02:57]}  hxg6 {[%clk 0:01:53]} 7. d3 {[%clk 0:02:58]}  Nbd7 {[%clk 0:01:53]} 8. Nd2 {[%clk 0:02:58]}  Bd6 {[%clk 0:01:52]} 9. b3 {[%clk 0:02:57]}  Be5 {[%clk 0:01:47]} 10. Rb1 {[%clk 0:02:56]}  Qe7 {[%clk 0:01:46]} 11. e4 {[%clk 0:02:54]}  O-O-O {[%clk 0:01:44]} 12. Bb2 {[%clk 0:02:49]}  Bxb2 {[%clk 0:01:42]} 13. Rxb2 {[%clk 0:02:49]}  Qc5 {[%clk 0:01:41]} 14. b4 {[%clk 0:02:37]}  Qc3 {[%clk 0:01:40]} 15. Rb3 {[%clk 0:02:37]}  Qe5 {[%clk 0:01:34]} 16. exd5 {[%clk 0:02:33]}  exd5 {[%clk 0:01:34]} 17. Nf3 {[%clk 0:02:24]}  Qh5 {[%clk 0:01:22]} 18. h4 {[%clk 0:02:20]}  Rhe8 {[%clk 0:01:15]} 19. Ng5 {[%clk 0:02:18]}  Re7 {[%clk 0:01:01]} 20. Rb1 {[%clk 0:02:10]}  Rde8 {[%clk 0:00:49]} 21. c4 {[%clk 0:02:05]}  dxc4 {[%clk 0:00:32]} 22. dxc4 {[%clk 0:02:06]}  Ne5 {[%clk 0:00:31]} 23. Qa4 {[%clk 0:01:58]}  Kb8 {[%clk 0:00:24]} 24. b5 {[%clk 0:01:54]}  Nfd7 {[%clk 0:00:20]} 25. Rbd1 {[%clk 0:01:39]}  Nb6 {[%clk 0:00:18]} 26. Qb4 {[%clk 0:01:34]}  Nexc4 {[%clk 0:00:15]} 27. a4 {[%clk 0:01:26]}  f6 {[%clk 0:00:13]} 28. Nf3 {[%clk 0:01:20]}  Re4 {[%clk 0:00:10]} 29. a5 {[%clk 0:01:17]}  Nd5 {[%clk 0:00:10]} 30. Qc5 {[%clk 0:01:11]}  Nc3 {[%clk 0:00:08]} 31. Qxh5 {[%clk 0:01:06]}  gxh5 {[%clk 0:00:07]} 32. Rd3 {[%clk 0:01:06]}  Ne2+ {[%clk 0:00:06]} 33. Kh2 {[%clk 0:01:04]}  Ne5 {[%clk 0:00:05]} 34. Rd2 {[%clk 0:00:48]}  Nc3 {[%clk 0:00:03]} 35. Nd4 {[%clk 0:00:45]}  Re2 {[%clk 0:00:02]} 36. Nxe2 {[%clk 0:00:44]}  a6 {[%clk 0:00:01]} 37. Nxc3 {[%clk 0:00:42]} 1-0


[Site "https://www.chess.com"]

[Event "Titled Tuesday Blitz March 29 Late 2022"]
[White "Mortazavi, Ali"]
[Black "Fernandez, Daniel Howard"]
[WhiteFideId "401323"]
[BlackFideId "5801605"]
[WhiteElo "2339"]
[BlackElo "2466"]
[Result "0-1"]
[Round "03"]
[TimeControl "180+1"]
[Date "2022.03.29"]
[WhiteClock "0:00:04"]
[BlackClock "0:00:36"]

1. Nf3 {[%clk 0:02:58]}  d5 {[%clk 0:02:07]} 2. g3 {[%clk 0:02:57]}  c6 {[%clk 0:02:04]} 3. Bg2 {[%clk 0:02:57]}  Bg4 {[%clk 0:02:03]} 4. O-O {[%clk 0:02:58]}  Nd7 {[%clk 0:02:03]} 5. d3 {[%clk 0:02:59]}  e5 {[%clk 0:02:02]} 6. c4 {[%clk 0:02:49]}  dxc4 {[%clk 0:01:59]} 7. dxc4 {[%clk 0:02:49]}  Ngf6 {[%clk 0:02:00]} 8. Nc3 {[%clk 0:02:46]}  Bc5 {[%clk 0:01:59]} 9. Qc2 {[%clk 0:02:42]}  h6 {[%clk 0:01:59]} 10. a3 {[%clk 0:02:14]}  a5 {[%clk 0:01:58]} 11. Rb1 {[%clk 0:02:10]}  Qe7 {[%clk 0:01:56]} 12. Nh4 {[%clk 0:02:05]}  O-O {[%clk 0:01:54]} 13. h3 {[%clk 0:01:57]}  Be6 {[%clk 0:01:52]} 14. Nf5 {[%clk 0:01:53]}  Bxf5 {[%clk 0:01:51]} 15. Qxf5 {[%clk 0:01:53]}  a4 {[%clk 0:01:49]} 16. Qc2 {[%clk 0:01:33]}  Nb6 {[%clk 0:01:49]} 17. Ne4 {[%clk 0:01:34]}  Nxe4 {[%clk 0:01:45]} 18. Bxe4 {[%clk 0:01:34]}  Qe6 {[%clk 0:01:46]} 19. Kg2 {[%clk 0:01:21]}  Qxc4 {[%clk 0:01:45]} 20. Bh7+ {[%clk 0:00:41]}  Kh8 {[%clk 0:01:43]} 21. Qf5 {[%clk 0:00:41]}  Rad8 {[%clk 0:01:25]} 22. g4 {[%clk 0:00:23]}  g6 {[%clk 0:01:20]} 23. Qxe5+ {[%clk 0:00:11]}  Kxh7 {[%clk 0:01:20]} 24. b4 {[%clk 0:00:10]}  axb3 {[%clk 0:01:18]} 25. Bb2 {[%clk 0:00:10]}  Bd4 {[%clk 0:01:18]} 26. Qc7 {[%clk 0:00:04]}  Bxb2 {[%clk 0:01:12]} 27. Rxb2 {[%clk 0:00:05]}  Na4 {[%clk 0:01:12]} 28. Rbb1 {[%clk 0:00:04]}  Qd5+ {[%clk 0:01:00]} 29. Kg1 {[%clk 0:00:04]}  Rd7 {[%clk 0:01:00]} 30. Qf4 {[%clk 0:00:03]}  Nc3 {[%clk 0:00:59]} 31. Rb2 {[%clk 0:00:03]}  Re8 {[%clk 0:00:50]} 32. Re1 {[%clk 0:00:03]}  Qe5 {[%clk 0:00:46]} 33. Qb4 {[%clk 0:00:03]}  Rd1 {[%clk 0:00:38]} 34. Rxd1 {[%clk 0:00:04]}  Nxd1 {[%clk 0:00:39]} 35. Qxb7 {[%clk 0:00:04]}  Nxb2 {[%clk 0:00:36]} 0-1


[Site "https://www.chess.com"]

[Event "Titled Tuesday Blitz March 29 Late 2022"]
[White "Nasuta, Grzegorz"]
[Black "Toncheva, Nadya"]
[WhiteFideId "1141686"]
[BlackFideId "2924056"]
[WhiteElo "2396"]
[BlackElo "1884"]
[Result "0-1"]
[Round "03"]
[TimeControl "180+1"]
[Date "2022.03.30"]
[WhiteClock "0:00:06"]
[BlackClock "0:00:12"]

1. e4 {[%clk 0:03:00]}  d5 {[%clk 0:02:59]} 2. exd5 {[%clk 0:02:59]}  Qxd5 {[%clk 0:03:00]} 3. Nf3 {[%clk 0:02:46]}  Qa5 {[%clk 0:02:59]} 4. g3 {[%clk 0:02:41]}  Nf6 {[%clk 0:02:58]} 5. Bg2 {[%clk 0:02:41]}  c6 {[%clk 0:02:58]} 6. O-O {[%clk 0:02:40]}  Bf5 {[%clk 0:02:57]} 7. d3 {[%clk 0:02:39]}  e6 {[%clk 0:02:57]} 8. Nbd2 {[%clk 0:02:35]}  Nbd7 {[%clk 0:02:55]} 9. Nc4 {[%clk 0:02:35]}  Qc7 {[%clk 0:02:55]} 10. Bf4 {[%clk 0:02:35]}  Qd8 {[%clk 0:02:47]} 11. Nd6+ {[%clk 0:02:34]}  Bxd6 {[%clk 0:02:47]} 12. Bxd6 {[%clk 0:02:35]}  Nb6 {[%clk 0:02:35]} 13. Ba3 {[%clk 0:02:35]}  Nc8 {[%clk 0:02:34]} 14. Qe2 {[%clk 0:02:32]}  Ne7 {[%clk 0:02:34]} 15. Qe5 {[%clk 0:01:59]}  O-O {[%clk 0:02:27]} 16. Qd6 {[%clk 0:01:57]}  Re8 {[%clk 0:02:22]} 17. Qxd8 {[%clk 0:01:55]}  Raxd8 {[%clk 0:02:22]} 18. Rfe1 {[%clk 0:01:56]}  Ned5 {[%clk 0:02:19]} 19. Ne5 {[%clk 0:01:56]}  Nd7 {[%clk 0:02:17]} 20. Nxd7 {[%clk 0:01:34]}  Rxd7 {[%clk 0:02:15]} 21. b3 {[%clk 0:01:30]}  h6 {[%clk 0:02:11]} 22. Bb2 {[%clk 0:01:29]}  Red8 {[%clk 0:02:05]} 23. h3 {[%clk 0:01:27]}  Bg6 {[%clk 0:01:57]} 24. Re2 {[%clk 0:01:26]}  Ne7 {[%clk 0:01:49]} 25. Rae1 {[%clk 0:01:22]}  Nf5 {[%clk 0:01:49]} 26. Rd2 {[%clk 0:01:02]}  Nd4 {[%clk 0:01:48]} 27. c3 {[%clk 0:00:55]}  Nb5 {[%clk 0:01:42]} 28. d4 {[%clk 0:00:53]}  c5 {[%clk 0:01:39]} 29. a4 {[%clk 0:00:25]}  Nc7 {[%clk 0:01:35]} 30. Bxb7 {[%clk 0:00:24]}  Rb8 {[%clk 0:01:25]} 31. Bc6 {[%clk 0:00:23]}  Rd6 {[%clk 0:01:25]} 32. Bg2 {[%clk 0:00:17]}  Rxb3 {[%clk 0:01:26]} 33. Red1 {[%clk 0:00:16]}  cxd4 {[%clk 0:01:17]} 34. cxd4 {[%clk 0:00:16]}  Nd5 {[%clk 0:01:13]} 35. Rc1 {[%clk 0:00:13]}  Rdb6 {[%clk 0:01:04]} 36. Ba1 {[%clk 0:00:12]}  Rb1 {[%clk 0:01:04]} 37. Rdd1 {[%clk 0:00:13]}  Bc2 {[%clk 0:00:57]} 38. Rxb1 {[%clk 0:00:11]}  Bxb1 {[%clk 0:00:54]} 39. Rc1 {[%clk 0:00:10]}  Ba2 {[%clk 0:00:45]} 40. Bc3 {[%clk 0:00:09]}  Bb3 {[%clk 0:00:41]} 41. a5 {[%clk 0:00:09]}  Ra6 {[%clk 0:00:40]} 42. Bd2 {[%clk 0:00:09]}  Ba4 {[%clk 0:00:29]} 43. Rc5 {[%clk 0:00:08]}  Rd6 {[%clk 0:00:27]} 44. Kf1 {[%clk 0:00:07]}  Nf6 {[%clk 0:00:20]} 45. Bc3 {[%clk 0:00:06]}  Bb3 {[%clk 0:00:18]} 46. Ke2 {[%clk 0:00:06]}  a6 {[%clk 0:00:18]} 47. Kd3 {[%clk 0:00:06]}  Nd5 {[%clk 0:00:17]} 48. Bd2 {[%clk 0:00:05]}  Ba4 {[%clk 0:00:17]} 49. Be4 {[%clk 0:00:03]}  Bb5+ {[%clk 0:00:17]} 50. Kc2 {[%clk 0:00:03]}  f5 {[%clk 0:00:17]} 51. Bg2 {[%clk 0:00:03]}  Kf7 {[%clk 0:00:18]} 52. Kb3 {[%clk 0:00:03]}  Kf6 {[%clk 0:00:18]} 53. Kc2 {[%clk 0:00:04]}  Be2 {[%clk 0:00:18]} 54. Bh1 {[%clk 0:00:03]}  Bb5 {[%clk 0:00:18]} 55. Bg2 {[%clk 0:00:04]}  g5 {[%clk 0:00:17]} 56. Bxd5 {[%clk 0:00:04]}  exd5 {[%clk 0:00:16]} 57. Bc3 {[%clk 0:00:04]}  Bc4 {[%clk 0:00:17]} 58. h4 {[%clk 0:00:04]}  Re6 {[%clk 0:00:17]} 59. Bb4 {[%clk 0:00:04]}  Re2+ {[%clk 0:00:16]} 60. Kc3 {[%clk 0:00:04]}  Rxf2 {[%clk 0:00:16]} 61. Rc6+ {[%clk 0:00:05]}  Kg7 {[%clk 0:00:16]} 62. Rc7+ {[%clk 0:00:05]}  Kg6 {[%clk 0:00:17]} 63. Rc6+ {[%clk 0:00:05]}  Kh5 {[%clk 0:00:17]} 64. Bf8 {[%clk 0:00:06]}  gxh4 {[%clk 0:00:16]} 65. Rxh6+ {[%clk 0:00:07]}  Kg4 {[%clk 0:00:16]} 66. gxh4 {[%clk 0:00:07]}  f4 {[%clk 0:00:17]} 67. Rh8 {[%clk 0:00:07]}  Rh2 {[%clk 0:00:16]} 68. Bd6 {[%clk 0:00:07]}  Rh3+ {[%clk 0:00:15]} 69. Kb4 {[%clk 0:00:06]}  f3 {[%clk 0:00:14]} 70. h5 {[%clk 0:00:06]}  f2 {[%clk 0:00:13]} 71. Rf8 {[%clk 0:00:07]}  Rf3 {[%clk 0:00:12]} 72. Rg8+ {[%clk 0:00:06]}  Kxh5 {[%clk 0:00:12]} 0-1


[Site "https://www.chess.com"]

[Event "Titled Tuesday Blitz March 29 Late 2022"]
[White "Nazari, Arad"]
[Black "Caruana, Fabiano"]
[WhiteFideId "12577324"]
[BlackFideId "2020009"]
[WhiteElo "2120"]
[BlackElo "2744"]
[Result "0-1"]
[Round "03"]
[TimeControl "180+1"]
[Date "2022.03.29"]
[WhiteClock "0:01:20"]
[BlackClock "0:01:36"]

1. e4 {[%clk 0:03:00]}  c5 {[%clk 0:02:59]} 2. Nf3 {[%clk 0:03:00]}  e6 {[%clk 0:02:58]} 3. d4 {[%clk 0:03:00]}  cxd4 {[%clk 0:02:59]} 4. Nxd4 {[%clk 0:03:00]}  Nc6 {[%clk 0:03:00]} 5. Nxc6 {[%clk 0:03:01]}  bxc6 {[%clk 0:02:59]} 6. Bd3 {[%clk 0:03:02]}  d5 {[%clk 0:02:59]} 7. O-O {[%clk 0:03:02]}  Nf6 {[%clk 0:03:00]} 8. Nd2 {[%clk 0:03:03]}  Bd6 {[%clk 0:02:59]} 9. Qe2 {[%clk 0:03:03]}  Qc7 {[%clk 0:02:59]} 10. Kh1 {[%clk 0:03:03]}  O-O {[%clk 0:02:55]} 11. c4 {[%clk 0:03:00]}  Bb7 {[%clk 0:02:55]} 12. b3 {[%clk 0:03:00]}  d4 {[%clk 0:02:40]} 13. g3 {[%clk 0:02:52]}  c5 {[%clk 0:02:39]} 14. f4 {[%clk 0:02:48]}  a5 {[%clk 0:02:38]} 15. a4 {[%clk 0:02:36]}  Nd7 {[%clk 0:02:25]} 16. Kg1 {[%clk 0:02:34]}  f5 {[%clk 0:02:13]} 17. Re1 {[%clk 0:02:15]}  Rae8 {[%clk 0:02:03]} 18. exf5 {[%clk 0:01:56]}  exf5 {[%clk 0:02:04]} 19. Qxe8 {[%clk 0:01:55]}  Rxe8 {[%clk 0:02:04]} 20. Rxe8+ {[%clk 0:01:56]}  Kf7 {[%clk 0:02:05]} 21. Re2 {[%clk 0:01:57]}  Qc6 {[%clk 0:01:56]} 22. Nf1 {[%clk 0:01:56]}  Qh1+ {[%clk 0:01:54]} 23. Kf2 {[%clk 0:01:57]}  Qf3+ {[%clk 0:01:54]} 24. Ke1 {[%clk 0:01:54]}  Qxd3 {[%clk 0:01:55]} 25. Bd2 {[%clk 0:01:54]}  Nf6 {[%clk 0:01:52]} 26. Bxa5 {[%clk 0:01:54]}  Qxb3 {[%clk 0:01:45]} 27. Nd2 {[%clk 0:01:44]}  Qd3 {[%clk 0:01:44]} 28. Rb1 {[%clk 0:01:33]}  Bf3 {[%clk 0:01:37]} 29. Nxf3 {[%clk 0:01:20]}  Qxb1+ {[%clk 0:01:36]} 0-1


[Site "https://www.chess.com"]